[Event "Titled Tuesday Blitz November 14 Late 2023"]
[White "Pesotskiy, Mikhail"]
[Black "KorolDimitriy75"]
[WhiteFideId "34164453"]
[WhiteElo "2508"]
[BlackElo "2348"]
[Result "1-0"]
[Round "9"]
[TimeControl "180+1"]
[Date "2023.11.14"]
[WhiteClock "0:01:19"]
[BlackClock "0:00:00"]
[Board "66"]

1. d4 {[%clk 0:03:00]}  Nf6 {[%clk 0:02:59]} 2. c4 {[%clk 0:02:57]}  c5 {[%clk 0:02:59]} 3. d5 {[%clk 0:02:57]}  b5 {[%clk 0:02:59]} 4. cxb5 {[%clk 0:02:58]}  a6 {[%clk 0:03:00]} 5. bxa6 {[%clk 0:02:59]}  g6 {[%clk 0:03:00]} 6. Nc3 {[%clk 0:03:00]}  Bxa6 {[%clk 0:03:00]} 7. e4 {[%clk 0:02:59]}  Bxf1 {[%clk 0:03:01]} 8. Kxf1 {[%clk 0:03:00]}  d6 {[%clk 0:03:02]} 9. g3 {[%clk 0:03:00]}  Bg7 {[%clk 0:03:02]} 10. Kg2 {[%clk 0:03:01]}  O-O {[%clk 0:03:03]} 11. Nf3 {[%clk 0:03:02]}  Nbd7 {[%clk 0:03:04]} 12. a4 {[%clk 0:03:02]}  Qb8 {[%clk 0:03:04]} 13. Qc2 {[%clk 0:02:55]}  Qb4 {[%clk 0:03:04]} 14. Bd2 {[%clk 0:02:55]}  Nb6 {[%clk 0:03:02]} 15. Rhb1 {[%clk 0:02:52]}  Rfb8 {[%clk 0:02:27]} 16. b3 {[%clk 0:02:51]}  c4 {[%clk 0:02:20]} 17. bxc4 {[%clk 0:02:50]}  Qxc4 {[%clk 0:02:15]} 18. a5 {[%clk 0:02:50]}  Nbd7 {[%clk 0:01:59]} 19. Rxb8+ {[%clk 0:02:37]}  Rxb8 {[%clk 0:01:19]} 20. a6 {[%clk 0:02:35]}  Nc5 {[%clk 0:01:01]} 21. a7 {[%clk 0:02:32]}  Ra8 {[%clk 0:01:02]} 22. Qb1 {[%clk 0:02:23]}  Nfd7 {[%clk 0:00:50]} 23. Ra3 {[%clk 0:02:13]}  Bxc3 {[%clk 0:00:27]} 24. Bxc3 {[%clk 0:02:14]}  Qxe4 {[%clk 0:00:19]} 25. Qxe4 {[%clk 0:02:01]}  Nxe4 {[%clk 0:00:20]} 26. Bd4 {[%clk 0:02:01]}  Nec5 {[%clk 0:00:18]} 27. Bxc5 {[%clk 0:01:59]}  dxc5 {[%clk 0:00:15]} 28. Nd2 {[%clk 0:01:57]}  Kf8 {[%clk 0:00:14]} 29. Nc4 {[%clk 0:01:38]}  Ke8 {[%clk 0:00:14]} 30. Ra6 {[%clk 0:01:38]}  Kd8 {[%clk 0:00:14]} 31. Na5 {[%clk 0:01:38]}  Kc7 {[%clk 0:00:13]} 32. Nc6 {[%clk 0:01:38]}  e6 {[%clk 0:00:11]} 33. dxe6 {[%clk 0:01:33]}  fxe6 {[%clk 0:00:11]} 34. Na5 {[%clk 0:01:34]}  Nb6 {[%clk 0:00:11]} 35. Kf3 {[%clk 0:01:31]}  e5 {[%clk 0:00:09]} 36. Ke4 {[%clk 0:01:31]}  c4 {[%clk 0:00:09]} 37. f3 {[%clk 0:01:26]}  Nc8 {[%clk 0:00:07]} 38. Kxe5 {[%clk 0:01:22]}  Rxa7 {[%clk 0:00:06]} 39. Rxa7+ {[%clk 0:01:22]}  Nxa7 {[%clk 0:00:07]} 40. Nxc4 {[%clk 0:01:22]}  Nb5 {[%clk 0:00:07]} 41. Kf6 {[%clk 0:01:22]}  Nd4 {[%clk 0:00:07]} 42. Nd2 {[%clk 0:01:19]}  Kd6 {[%clk 0:00:06]} 43. Kg7 {[%clk 0:01:19]}  Nf5+ {[%clk 0:00:04]} 44. Kxh7 {[%clk 0:01:19]}  g5 {[%clk 0:00:03]} 45. Kg6 {[%clk 0:01:19]}  Ne3 {[%clk 0:00:02]} 46. Kxg5 {[%clk 0:01:19]}  Ke5 {[%clk 0:00:00]} 47. h4 {[%clk 0:01:19]} 1-0


[Site "https://www.chess.com"]

[Event "Titled Tuesday Blitz November 14 Late 2023"]
[White "Acosta Cruz, Oscar Yosimar"]
[Black "Ventura Bolet, Maxim"]
[WhiteFideId "5111269"]
[BlackFideId "22238824"]
[WhiteElo "2233"]
[BlackElo "2498"]
[Result "0-1"]
[Round "9"]
[TimeControl "180+1"]
[Date "2023.11.14"]
[WhiteClock "0:00:47"]
[BlackClock "0:00:07"]
[Board "67"]

1. d4 {[%clk 0:03:00]}  Nf6 {[%clk 0:02:59]} 2. Nf3 {[%clk 0:03:00]}  g6 {[%clk 0:02:59]} 3. Bf4 {[%clk 0:02:59]}  Bg7 {[%clk 0:02:49]} 4. e3 {[%clk 0:02:58]}  O-O {[%clk 0:02:48]} 5. h3 {[%clk 0:02:56]}  c5 {[%clk 0:02:48]} 6. c3 {[%clk 0:02:56]}  cxd4 {[%clk 0:02:45]} 7. exd4 {[%clk 0:02:56]}  d5 {[%clk 0:02:43]} 8. Be2 {[%clk 0:02:53]}  Nc6 {[%clk 0:02:42]} 9. O-O {[%clk 0:02:52]}  Bf5 {[%clk 0:02:39]} 10. Na3 {[%clk 0:02:52]}  a6 {[%clk 0:02:35]} 11. Bh2 {[%clk 0:02:51]}  Qb6 {[%clk 0:02:33]} 12. Qb3 {[%clk 0:02:49]}  Qxb3 {[%clk 0:02:31]} 13. axb3 {[%clk 0:02:49]}  Rac8 {[%clk 0:02:16]} 14. Rfe1 {[%clk 0:02:46]}  Bh6 {[%clk 0:02:06]} 15. Rad1 {[%clk 0:02:43]}  Rfe8 {[%clk 0:02:02]} 16. Bd3 {[%clk 0:02:41]}  Bxd3 {[%clk 0:01:58]} 17. Rxd3 {[%clk 0:02:41]}  Na5 {[%clk 0:01:54]} 18. b4 {[%clk 0:02:30]}  Nc4 {[%clk 0:01:54]} 19. Nxc4 {[%clk 0:02:26]}  Rxc4 {[%clk 0:01:45]} 20. Ne5 {[%clk 0:02:24]}  Rcc8 {[%clk 0:01:44]} 21. Rdd1 {[%clk 0:01:59]}  Ne4 {[%clk 0:01:44]} 22. Re2 {[%clk 0:01:59]}  Nd6 {[%clk 0:01:31]} 23. Ng4 {[%clk 0:01:58]}  Bg7 {[%clk 0:01:28]} 24. Bxd6 {[%clk 0:01:57]}  exd6 {[%clk 0:01:29]} 25. Rde1 {[%clk 0:01:58]}  Re4 {[%clk 0:01:21]} 26. f3 {[%clk 0:01:53]}  Rxe2 {[%clk 0:01:18]} 27. Rxe2 {[%clk 0:01:54]}  Kf8 {[%clk 0:01:10]} 28. Ne3 {[%clk 0:01:51]}  h5 {[%clk 0:00:38]} 29. Nxd5 {[%clk 0:01:48]}  Bh6 {[%clk 0:00:37]} 30. f4 {[%clk 0:01:46]}  h4 {[%clk 0:00:36]} 31. Kf2 {[%clk 0:01:46]}  f5 {[%clk 0:00:34]} 32. Re6 {[%clk 0:01:42]}  Kf7 {[%clk 0:00:34]} 33. Rf6+ {[%clk 0:01:40]}  Kg7 {[%clk 0:00:31]} 34. Rxd6 {[%clk 0:01:40]}  Rc6 {[%clk 0:00:17]} 35. Rd7+ {[%clk 0:01:35]}  Kf8 {[%clk 0:00:15]} 36. Rxb7 {[%clk 0:01:29]}  Rd6 {[%clk 0:00:16]} 37. c4 {[%clk 0:01:28]}  Bg7 {[%clk 0:00:15]} 38. Ke3 {[%clk 0:01:27]}  Re6+ {[%clk 0:00:15]} 39. Kd3 {[%clk 0:01:27]}  Re4 {[%clk 0:00:16]} 40. Rb8+ {[%clk 0:01:19]}  Kf7 {[%clk 0:00:15]} 41. Rb7+ {[%clk 0:01:10]}  Kf8 {[%clk 0:00:16]} 42. Kc2 {[%clk 0:01:05]}  Rxd4 {[%clk 0:00:14]} 43. Kb3 {[%clk 0:00:56]}  Rd3+ {[%clk 0:00:07]} 44. Ka4 {[%clk 0:00:56]}  Bxb2 {[%clk 0:00:07]} 45. Rb6 {[%clk 0:00:47]}  Ra3# {[%clk 0:00:07]} 0-1


[Site "https://www.chess.com"]

[Event "Titled Tuesday Blitz November 14 Late 2023"]
[White "Sivanandan, Bodhana"]
[Black "Kochiev, Ivan"]
[WhiteFideId "497592"]
[BlackFideId "2917890"]
[WhiteElo "2212"]
[BlackElo "2497"]
[Result "0-1"]
[Round "9"]
[TimeControl "180+1"]
[Date "2023.11.14"]
[WhiteClock "0:01:43"]
[BlackClock "0:02:23"]
[Board "68"]

1. d4 {[%clk 0:02:56]}  Nf6 {[%clk 0:02:59]} 2. Nf3 {[%clk 0:02:56]}  e6 {[%clk 0:02:59]} 3. Bf4 {[%clk 0:02:56]}  c5 {[%clk 0:03:00]} 4. e3 {[%clk 0:02:56]}  d5 {[%clk 0:03:00]} 5. c3 {[%clk 0:02:50]}  Bd6 {[%clk 0:03:00]} 6. Bxd6 {[%clk 0:02:48]}  Qxd6 {[%clk 0:03:00]} 7. Nbd2 {[%clk 0:02:48]}  Nc6 {[%clk 0:02:58]} 8. Bd3 {[%clk 0:02:45]}  O-O {[%clk 0:02:57]} 9. O-O {[%clk 0:02:45]}  e5 {[%clk 0:02:58]} 10. dxe5 {[%clk 0:02:42]}  Nxe5 {[%clk 0:02:59]} 11. Nxe5 {[%clk 0:02:42]}  Qxe5 {[%clk 0:03:00]} 12. Nf3 {[%clk 0:02:38]}  Qe6 {[%clk 0:03:00]} 13. h3 {[%clk 0:02:36]}  b6 {[%clk 0:02:59]} 14. Re1 {[%clk 0:02:32]}  Bb7 {[%clk 0:02:58]} 15. b4 {[%clk 0:02:32]}  h6 {[%clk 0:02:49]} 16. Rb1 {[%clk 0:02:25]}  Bc6 {[%clk 0:02:45]} 17. bxc5 {[%clk 0:02:22]}  bxc5 {[%clk 0:02:46]} 18. Bb5 {[%clk 0:02:20]}  Rab8 {[%clk 0:02:44]} 19. Bxc6 {[%clk 0:02:19]}  Qxc6 {[%clk 0:02:45]} 20. Qd3 {[%clk 0:02:15]}  Ne4 {[%clk 0:02:44]} 21. c4 {[%clk 0:02:10]}  Rxb1 {[%clk 0:02:32]} 22. Rxb1 {[%clk 0:02:07]}  Rd8 {[%clk 0:02:32]} 23. cxd5 {[%clk 0:02:02]}  Qxd5 {[%clk 0:02:32]} 24. Qxd5 {[%clk 0:02:02]}  Rxd5 {[%clk 0:02:33]} 25. Kf1 {[%clk 0:01:55]}  c4 {[%clk 0:02:24]} 26. Rb8+ {[%clk 0:01:47]}  Kh7 {[%clk 0:02:24]} 27. Rc8 {[%clk 0:01:45]}  Rd1+ {[%clk 0:02:23]} 28. Ke2 {[%clk 0:01:43]}  Nc3# {[%clk 0:02:23]} 0-1


[Site "https://www.chess.com"]

[Event "Titled Tuesday Blitz November 14 Late 2023"]
[White "Hajiyev, Kanan"]
[Black "Elbebiber"]
[WhiteFideId "13404148"]
[WhiteElo "2495"]
[BlackElo "2101"]
[Result "1-0"]
[Round "9"]
[TimeControl "180+1"]
[Date "2023.11.14"]
[WhiteClock "0:01:06"]
[BlackClock "0:00:17"]
[Board "69"]

1. d4 {[%clk 0:03:00]}  e6 {[%clk 0:02:59]} 2. Nf3 {[%clk 0:03:01]}  Nf6 {[%clk 0:02:57]} 3. c4 {[%clk 0:03:02]}  Bb4+ {[%clk 0:02:56]} 4. Bd2 {[%clk 0:03:02]}  Qe7 {[%clk 0:02:50]} 5. Nc3 {[%clk 0:03:02]}  O-O {[%clk 0:02:37]} 6. e3 {[%clk 0:03:02]}  c5 {[%clk 0:02:34]} 7. dxc5 {[%clk 0:03:02]}  Na6 {[%clk 0:02:23]} 8. a3 {[%clk 0:02:59]}  Bxc3 {[%clk 0:02:18]} 9. Bxc3 {[%clk 0:03:00]}  Nxc5 {[%clk 0:02:16]} 10. Be5 {[%clk 0:02:45]}  d5 {[%clk 0:02:06]} 11. Be2 {[%clk 0:02:37]}  Rd8 {[%clk 0:01:57]} 12. Qc2 {[%clk 0:02:33]}  a5 {[%clk 0:01:42]} 13. O-O {[%clk 0:02:32]}  a4 {[%clk 0:01:42]} 14. Nd4 {[%clk 0:02:28]}  Bd7 {[%clk 0:01:30]} 15. Bxf6 {[%clk 0:02:24]}  gxf6 {[%clk 0:01:24]} 16. cxd5 {[%clk 0:02:24]}  exd5 {[%clk 0:01:22]} 17. Rac1 {[%clk 0:02:20]}  Rac8 {[%clk 0:01:20]} 18. Bd3 {[%clk 0:02:13]}  Ne4 {[%clk 0:01:10]} 19. Qe2 {[%clk 0:02:11]}  Be6 {[%clk 0:01:05]} 20. Qh5 {[%clk 0:02:07]}  Rxc1 {[%clk 0:00:58]} 21. Rxc1 {[%clk 0:02:08]}  f5 {[%clk 0:00:53]} 22. Nxf5 {[%clk 0:01:58]}  Qf6 {[%clk 0:00:53]} 23. Bxe4 {[%clk 0:01:44]}  dxe4 {[%clk 0:00:52]} 24. Nd4 {[%clk 0:01:30]}  Bb3 {[%clk 0:00:43]} 25. Rc8 {[%clk 0:01:19]}  Rxc8 {[%clk 0:00:32]} 26. Qg4+ {[%clk 0:01:19]}  Kf8 {[%clk 0:00:25]} 27. Qxc8+ {[%clk 0:01:19]}  Kg7 {[%clk 0:00:25]} 28. Qg4+ {[%clk 0:01:19]}  Kh8 {[%clk 0:00:25]} 29. Qxe4 {[%clk 0:01:09]}  Qd6 {[%clk 0:00:20]} 30. Qe8+ {[%clk 0:01:05]}  Kg7 {[%clk 0:00:17]} 31. Nf5+ {[%clk 0:01:06]} 1-0


[Site "https://www.chess.com"]

[Event "Titled Tuesday Blitz November 14 Late 2023"]
[White "Guerra Tulcan, Lenin"]
[Black "Kustar, Sandor"]
[WhiteFideId "3601382"]
[BlackFideId "702900"]
[WhiteElo "2584"]
[BlackElo "2433"]
[Result "1-0"]
[Round "9"]
[TimeControl "180+1"]
[Date "2023.11.14"]
[WhiteClock "0:00:07"]
[BlackClock "0:00:00"]
[Board "70"]

1. e4 {[%clk 0:03:00]}  c5 {[%clk 0:02:58]} 2. Nf3 {[%clk 0:03:00]}  e6 {[%clk 0:02:59]} 3. b4 {[%clk 0:03:00]}  cxb4 {[%clk 0:02:58]} 4. a3 {[%clk 0:03:01]}  d5 {[%clk 0:02:56]} 5. e5 {[%clk 0:03:01]}  Nc6 {[%clk 0:02:55]} 6. Bd3 {[%clk 0:03:00]}  Nge7 {[%clk 0:02:51]} 7. O-O {[%clk 0:02:59]}  Ng6 {[%clk 0:02:51]} 8. Re1 {[%clk 0:02:59]}  Bc5 {[%clk 0:02:42]} 9. Bb5 {[%clk 0:02:35]}  Bxf2+ {[%clk 0:02:35]} 10. Kxf2 {[%clk 0:02:36]}  Qb6+ {[%clk 0:02:35]} 11. d4 {[%clk 0:02:34]}  Qxb5 {[%clk 0:02:35]} 12. axb4 {[%clk 0:02:33]}  Nxb4 {[%clk 0:02:27]} 13. Kg1 {[%clk 0:01:54]}  Bd7 {[%clk 0:02:26]} 14. c3 {[%clk 0:01:51]}  Nd3 {[%clk 0:02:10]} 15. Na3 {[%clk 0:01:51]}  Qa6 {[%clk 0:02:01]} 16. Nc2 {[%clk 0:01:51]}  Qc4 {[%clk 0:01:59]} 17. Nd2 {[%clk 0:01:26]}  Qxc3 {[%clk 0:01:53]} 18. Ra3 {[%clk 0:01:25]}  Qc7 {[%clk 0:01:48]} 19. Rxd3 {[%clk 0:01:24]}  Rc8 {[%clk 0:01:41]} 20. Ne3 {[%clk 0:01:17]}  Bb5 {[%clk 0:01:31]} 21. Ra3 {[%clk 0:01:14]}  Nf4 {[%clk 0:01:27]} 22. Qg4 {[%clk 0:00:23]}  Ne2+ {[%clk 0:01:02]} 23. Kf2 {[%clk 0:00:23]}  Nxc1 {[%clk 0:00:57]} 24. Qxg7 {[%clk 0:00:23]}  Rf8 {[%clk 0:00:58]} 25. Kg3 {[%clk 0:00:18]}  Kd7 {[%clk 0:00:41]} 26. Ng4 {[%clk 0:00:17]}  Nd3 {[%clk 0:00:33]} 27. Re3 {[%clk 0:00:15]}  Nb4 {[%clk 0:00:15]} 28. Nf3 {[%clk 0:00:13]}  Nc6 {[%clk 0:00:13]} 29. Rac3 {[%clk 0:00:12]}  Rce8 {[%clk 0:00:12]} 30. Nf6+ {[%clk 0:00:12]}  Kd8 {[%clk 0:00:13]} 31. Nxe8 {[%clk 0:00:13]}  Kxe8 {[%clk 0:00:13]} 32. Ng5 {[%clk 0:00:13]}  Qe7 {[%clk 0:00:13]} 33. Rf3 {[%clk 0:00:13]}  a5 {[%clk 0:00:13]} 34. Rf6 {[%clk 0:00:13]}  a4 {[%clk 0:00:13]} 35. Rcf3 {[%clk 0:00:13]}  Nd8 {[%clk 0:00:12]} 36. Nxh7 {[%clk 0:00:13]}  Bc4 {[%clk 0:00:08]} 37. Rh6 {[%clk 0:00:11]}  a3 {[%clk 0:00:07]} 38. Nxf8 {[%clk 0:00:11]}  a2 {[%clk 0:00:04]} 39. Rh8 {[%clk 0:00:09]}  a1=Q {[%clk 0:00:03]} 40. Nxe6+ {[%clk 0:00:09]}  Kd7 {[%clk 0:00:04]} 41. Rxd8+ {[%clk 0:00:09]}  Qxd8 {[%clk 0:00:04]} 42. Nxd8 {[%clk 0:00:09]}  Qxd4 {[%clk 0:00:00]} 43. Rxf7+ {[%clk 0:00:07]} 1-0


[Site "https://www.chess.com"]

[Event "Titled Tuesday Blitz November 14 Late 2023"]
[White "Ferreira, Vitor Hugo Vieira"]
[Black "Estrada Nieto, Julian"]
[WhiteFideId "2119765"]
[BlackFideId "5101018"]
[WhiteElo "2508"]
[BlackElo "2429"]
[Result "0-1"]
[Round "9"]
[TimeControl "180+1"]
[Date "2023.11.14"]
[WhiteClock "0:00:00"]
[BlackClock "0:00:07"]
[Board "72"]

1. d4 {[%clk 0:02:56]}  d5 {[%clk 0:03:00]} 2. c3 {[%clk 0:02:56]}  Nf6 {[%clk 0:03:00]} 3. Bf4 {[%clk 0:02:56]}  c6 {[%clk 0:02:56]} 4. e3 {[%clk 0:02:56]}  Bf5 {[%clk 0:02:56]} 5. Nd2 {[%clk 0:02:55]}  Nbd7 {[%clk 0:02:55]} 6. h3 {[%clk 0:02:54]}  e6 {[%clk 0:02:54]} 7. Ngf3 {[%clk 0:02:55]}  Be7 {[%clk 0:02:55]} 8. Nh4 {[%clk 0:02:47]}  Be4 {[%clk 0:02:51]} 9. Nhf3 {[%clk 0:02:42]}  O-O {[%clk 0:02:48]} 10. Nxe4 {[%clk 0:02:41]}  Nxe4 {[%clk 0:02:46]} 11. Bd3 {[%clk 0:02:40]}  f5 {[%clk 0:02:33]} 12. O-O {[%clk 0:02:39]}  Bf6 {[%clk 0:02:23]} 13. Qc2 {[%clk 0:02:38]}  Rc8 {[%clk 0:02:22]} 14. Rae1 {[%clk 0:02:37]}  c5 {[%clk 0:02:18]} 15. Bh2 {[%clk 0:02:23]}  a6 {[%clk 0:02:17]} 16. Qe2 {[%clk 0:02:15]}  b5 {[%clk 0:02:12]} 17. Nd2 {[%clk 0:02:14]}  c4 {[%clk 0:02:02]} 18. Bb1 {[%clk 0:02:13]}  Nb6 {[%clk 0:01:58]} 19. f3 {[%clk 0:02:13]}  Nxd2 {[%clk 0:01:57]} 20. Qxd2 {[%clk 0:02:14]}  Bh4 {[%clk 0:01:48]} 21. Re2 {[%clk 0:02:11]}  Bg5 {[%clk 0:01:43]} 22. Qe1 {[%clk 0:02:08]}  a5 {[%clk 0:01:39]} 23. e4 {[%clk 0:02:08]}  fxe4 {[%clk 0:01:39]} 24. fxe4 {[%clk 0:02:09]}  Rxf1+ {[%clk 0:01:34]} 25. Kxf1 {[%clk 0:02:09]}  Qd7 {[%clk 0:01:27]} 26. Kg1 {[%clk 0:02:05]}  Rf8 {[%clk 0:01:25]} 27. exd5 {[%clk 0:02:03]}  exd5 {[%clk 0:01:25]} 28. Re6 {[%clk 0:01:57]}  Na4 {[%clk 0:01:20]} 29. Rd6 {[%clk 0:01:41]}  Qf7 {[%clk 0:01:13]} 30. Be5 {[%clk 0:01:24]}  Nxb2 {[%clk 0:01:09]} 31. Qg3 {[%clk 0:01:19]}  Qf1+ {[%clk 0:00:37]} 32. Kh2 {[%clk 0:01:19]}  Bf4 {[%clk 0:00:35]} 33. Bxf4 {[%clk 0:01:19]}  Qxf4 {[%clk 0:00:36]} 34. Rxd5 {[%clk 0:01:16]}  Nd1 {[%clk 0:00:26]} 35. Rxb5 {[%clk 0:00:49]}  Nxc3 {[%clk 0:00:26]} 36. Rb7 {[%clk 0:00:41]}  Qxg3+ {[%clk 0:00:17]} 37. Kxg3 {[%clk 0:00:40]}  Nxb1 {[%clk 0:00:12]} 38. Rxb1 {[%clk 0:00:39]}  Rd8 {[%clk 0:00:13]} 39. Rd1 {[%clk 0:00:38]}  Kf7 {[%clk 0:00:13]} 40. Kf4 {[%clk 0:00:38]}  Ke6 {[%clk 0:00:13]} 41. Ke4 {[%clk 0:00:38]}  Kd6 {[%clk 0:00:13]} 42. Rc1 {[%clk 0:00:37]}  Re8+ {[%clk 0:00:12]} 43. Kf5 {[%clk 0:00:33]}  Kd5 {[%clk 0:00:13]} 44. Rb1 {[%clk 0:00:33]}  Rf8+ {[%clk 0:00:09]} 45. Kg4 {[%clk 0:00:32]}  Kxd4 {[%clk 0:00:09]} 46. Rb7 {[%clk 0:00:32]}  Rf2 {[%clk 0:00:09]} 47. g3 {[%clk 0:00:31]}  Rxa2 {[%clk 0:00:09]} 48. Rxg7 {[%clk 0:00:31]}  c3 {[%clk 0:00:09]} 49. Rxh7 {[%clk 0:00:31]}  c2 {[%clk 0:00:09]} 50. Rd7+ {[%clk 0:00:32]}  Ke3 {[%clk 0:00:07]} 51. Re7+ {[%clk 0:00:32]}  Kd2 {[%clk 0:00:07]} 52. Rd7+ {[%clk 0:00:32]}  Ke2 {[%clk 0:00:07]} 53. Re7+ {[%clk 0:00:33]}  Kd1 {[%clk 0:00:07]} 54. Rd7+ {[%clk 0:00:33]}  Kc1 {[%clk 0:00:07]} 55. h4 {[%clk 0:00:33]}  Kb1 {[%clk 0:00:05]} 56. Rc7 {[%clk 0:00:31]}  c1=Q {[%clk 0:00:05]} 57. Rxc1+ {[%clk 0:00:31]}  Kxc1 {[%clk 0:00:06]} 58. h5 {[%clk 0:00:32]}  Rh2 {[%clk 0:00:06]} 59. Kg5 {[%clk 0:00:32]}  a4 {[%clk 0:00:07]} 60. Kf6 {[%clk 0:00:31]}  a3 {[%clk 0:00:07]} 61. g4 {[%clk 0:00:32]}  a2 {[%clk 0:00:07]} 62. g5 {[%clk 0:00:33]}  a1=Q+ {[%clk 0:00:08]} 63. Kf5 {[%clk 0:00:14]}  Qa5+ {[%clk 0:00:07]} 64. Kf4 {[%clk 0:00:10]}  Rxh5 {[%clk 0:00:06]} 65. g6 {[%clk 0:00:08]}  Qg5+ {[%clk 0:00:07]} 66. Ke4 {[%clk 0:00:00]}  Qxg6+ {[%clk 0:00:07]} 0-1


[Site "https://www.chess.com"]

[Event "Titled Tuesday Blitz November 14 Late 2023"]
[White "Przybylski, Wojciech"]
[Black "Cardozo Munar, Carlos Eduardo"]
[WhiteFideId "1117599"]
[BlackFideId "4409477"]
[WhiteElo "2494"]
[BlackElo "2292"]
[Result "1-0"]
[Round "9"]
[TimeControl "180+1"]
[Date "2023.11.14"]
[WhiteClock "0:01:03"]
[BlackClock "0:00:05"]
[Board "74"]

1. e4 {[%clk 0:03:00]}  e6 {[%clk 0:02:59]} 2. d4 {[%clk 0:02:59]}  d5 {[%clk 0:03:00]} 3. Nc3 {[%clk 0:02:59]}  Nf6 {[%clk 0:02:59]} 4. e5 {[%clk 0:02:58]}  Nfd7 {[%clk 0:02:59]} 5. f4 {[%clk 0:02:59]}  c5 {[%clk 0:02:59]} 6. Nf3 {[%clk 0:03:00]}  Nc6 {[%clk 0:02:59]} 7. Be3 {[%clk 0:02:59]}  Qb6 {[%clk 0:03:00]} 8. Qd2 {[%clk 0:02:58]}  Qxb2 {[%clk 0:02:56]} 9. Rb1 {[%clk 0:02:58]}  Qa3 {[%clk 0:02:56]} 10. Be2 {[%clk 0:02:55]}  a6 {[%clk 0:02:50]} 11. O-O {[%clk 0:02:54]}  cxd4 {[%clk 0:02:42]} 12. Nxd4 {[%clk 0:02:53]}  Nxd4 {[%clk 0:02:42]} 13. Bxd4 {[%clk 0:02:53]}  Bc5 {[%clk 0:02:42]} 14. Kh1 {[%clk 0:02:47]}  Bxd4 {[%clk 0:02:42]} 15. Qxd4 {[%clk 0:02:47]}  Qc5 {[%clk 0:02:43]} 16. Qd3 {[%clk 0:02:45]}  b5 {[%clk 0:02:40]} 17. Qg3 {[%clk 0:02:42]}  g6 {[%clk 0:02:39]} 18. h3 {[%clk 0:02:28]}  Bb7 {[%clk 0:02:39]} 19. Rb3 {[%clk 0:02:22]}  Rc8 {[%clk 0:02:37]} 20. Bd3 {[%clk 0:02:21]}  Qd4 {[%clk 0:02:15]} 21. Ne2 {[%clk 0:02:19]}  Qc5 {[%clk 0:02:08]} 22. a4 {[%clk 0:02:10]}  b4 {[%clk 0:02:01]} 23. Ng1 {[%clk 0:02:00]}  Qe7 {[%clk 0:01:51]} 24. Nf3 {[%clk 0:01:59]}  Nc5 {[%clk 0:01:52]} 25. Rxb4 {[%clk 0:01:50]}  Nxd3 {[%clk 0:01:51]} 26. Rxb7 {[%clk 0:01:46]}  Qxb7 {[%clk 0:01:46]} 27. cxd3 {[%clk 0:01:46]}  Qb4 {[%clk 0:01:39]} 28. Qg5 {[%clk 0:01:42]}  h6 {[%clk 0:01:24]} 29. Qf6 {[%clk 0:01:37]}  O-O {[%clk 0:01:25]} 30. f5 {[%clk 0:01:32]}  exf5 {[%clk 0:01:18]} 31. e6 {[%clk 0:01:32]}  Kh7 {[%clk 0:01:05]} 32. Ne5 {[%clk 0:01:18]}  Rc6 {[%clk 0:00:57]} 33. Nxc6 {[%clk 0:01:17]}  fxe6 {[%clk 0:00:53]} 34. Qxe6 {[%clk 0:01:16]}  Qc5 {[%clk 0:00:41]} 35. Ne5 {[%clk 0:01:06]}  Rg8 {[%clk 0:00:15]} 36. Nd7 {[%clk 0:01:05]}  Qc8 {[%clk 0:00:06]} 37. Nf6+ {[%clk 0:01:03]}  Kg7 {[%clk 0:00:07]} 38. Qe7+ {[%clk 0:01:02]}  Kh8 {[%clk 0:00:05]} 39. Qh7# {[%clk 0:01:03]} 1-0


[Site "https://www.chess.com"]

[Event "Titled Tuesday Blitz November 14 Late 2023"]
[White "Reprintsev, Alexander"]
[Black "Laskakis, Konstantinos"]
[WhiteFideId "14100541"]
[BlackFideId "42134374"]
[WhiteElo "2488"]
[BlackElo "2354"]
[Result "0-1"]
[Round "9"]
[TimeControl "180+1"]
[Date "2023.11.14"]
[WhiteClock "0:00:00"]
[BlackClock "0:00:12"]
[Board "75"]

1. e4 {[%clk 0:03:00]}  e5 {[%clk 0:02:59]} 2. Nf3 {[%clk 0:03:00]}  Nc6 {[%clk 0:03:00]} 3. Bc4 {[%clk 0:03:00]}  Nf6 {[%clk 0:02:59]} 4. Ng5 {[%clk 0:02:59]}  d5 {[%clk 0:02:58]} 5. exd5 {[%clk 0:02:59]}  Na5 {[%clk 0:02:58]} 6. Bb5+ {[%clk 0:02:59]}  c6 {[%clk 0:02:59]} 7. dxc6 {[%clk 0:03:00]}  bxc6 {[%clk 0:02:59]} 8. Bd3 {[%clk 0:02:59]}  Nd5 {[%clk 0:02:51]} 9. h4 {[%clk 0:02:50]}  h6 {[%clk 0:02:37]} 10. Qh5 {[%clk 0:02:43]}  Qf6 {[%clk 0:02:36]} 11. Ne4 {[%clk 0:01:46]}  Qe6 {[%clk 0:02:12]} 12. b3 {[%clk 0:01:39]}  Nf4 {[%clk 0:02:07]} 13. Qf3 {[%clk 0:01:37]}  f5 {[%clk 0:01:58]} 14. Ng3 {[%clk 0:01:17]}  e4 {[%clk 0:01:28]} 15. Qxf4 {[%clk 0:01:15]}  exd3+ {[%clk 0:01:28]} 16. Qe3 {[%clk 0:01:10]}  dxc2 {[%clk 0:01:22]} 17. Nc3 {[%clk 0:01:03]}  Bc5 {[%clk 0:01:11]} 18. Qxe6+ {[%clk 0:01:01]}  Bxe6 {[%clk 0:01:12]} 19. Bb2 {[%clk 0:00:57]}  O-O-O {[%clk 0:00:56]} 20. Rc1 {[%clk 0:00:55]}  Nxb3 {[%clk 0:00:51]} 21. axb3 {[%clk 0:00:55]}  Bxb3 {[%clk 0:00:51]} 22. Nxf5 {[%clk 0:00:50]}  Rhe8+ {[%clk 0:00:48]} 23. Ne3 {[%clk 0:00:50]}  Rd4 {[%clk 0:00:38]} 24. Ne2 {[%clk 0:00:50]}  Ra4 {[%clk 0:00:37]} 25. Nxc2 {[%clk 0:00:45]}  Ra2 {[%clk 0:00:27]} 26. Ne3 {[%clk 0:00:16]}  Bxe3 {[%clk 0:00:23]} 27. fxe3 {[%clk 0:00:13]}  Rxb2 {[%clk 0:00:24]} 28. Nc3 {[%clk 0:00:10]}  a5 {[%clk 0:00:20]} 29. Rf1 {[%clk 0:00:07]}  Re7 {[%clk 0:00:18]} 30. Rf5 {[%clk 0:00:07]}  a4 {[%clk 0:00:17]} 31. Ra5 {[%clk 0:00:07]}  Rd7 {[%clk 0:00:17]} 32. Nxa4 {[%clk 0:00:04]}  Rbxd2 {[%clk 0:00:16]} 33. Rxc6+ {[%clk 0:00:01]}  Kb7 {[%clk 0:00:15]} 34. Rb6+ {[%clk 0:00:01]}  Kc7 {[%clk 0:00:15]} 35. Rxb3 {[%clk 0:00:00]}  Rxg2 {[%clk 0:00:12]} 0-1


[Site "https://www.chess.com"]